fUSD/lending_fUSD_20250608
["ID","MTS","AMOUNT","RATE_DAILY","PERIOD"]
[364969032,1749364252898,-480.0,0.00019671,2]
[364969033,1749364252908,-480.0,0.00019671,2]
[364969034,1749364252918,-480.0,0.00019671,2]
[364969035,1749364252929,-480.0,0.00019671,2]
[364969036,1749364252941,-480.0,0.00019671,2]
[364969037,1749364252951,-724.24,0.00019671,2]
[364969038,1749364252961,-1052.94,0.00019671,2]
[364969039,1749364252970,-619.92819177,0.00019671,2]
[364969040,1749364252981,-480.0,0.00019671,2]
[364969041,1749364252990,-480.0,0.00019671,2]
[364969042,1749364253000,-249.72547322,0.00019671,2]
[364969043,1749364253009,-542.36752335,0.00019671,2]
[364969044,1749364253019,-480.0,0.00019671,2]
[364969045,1749364253032,-589.8,0.00019671,2]
[364969046,1749364253042,-480.0,0.00019671,2]
[364969047,1749364253057,-480.0,0.00019671,2]
[364969048,1749364253078,-480.0,0.00019671,2]
[364969049,1749364253087,-480.0,0.00019671,2]
[364969050,1749364253097,-534.29,0.00019671,2]
[364969051,1749364253107,-480.0,0.00019671,2]
[364969052,1749364253117,-480.0,0.00019671,2]
[364969053,1749364253126,-480.0,0.00019671,2]
[364969054,1749364253136,-4698.95,0.00019671,2]
[364969055,1749364253146,-480.0,0.00019671,2]
[364969056,1749364253156,-480.0,0.00019671,2]
[364969057,1749364253166,-885.82,0.00019671,2]
[364969058,1749364253175,-480.0,0.00019671,2]
[364969059,1749364253184,-480.0,0.00019671,2]
[364969060,1749364253194,-480.0,0.00019671,2]
[364969061,1749364253203,-695.25,0.00019671,2]
[364969062,1749364253212,-480.0,0.00019671,2]
[364969063,1749364253221,-480.0,0.00019671,2]
[364969064,1749364253230,-480.0,0.00019671,2]
[364969065,1749364253239,-527.57,0.00019671,2]
[364969066,1749364253249,-480.0,0.00019671,2]
[364969067,1749364253258,-647.89,0.00019671,2]
[364969068,1749364253268,-580.96,0.00019671,2]
[364969069,1749364253277,-480.0,0.00019671,2]
[364969070,1749364253286,-480.0,0.00019671,2]
[364969071,1749364253296,-480.0,0.00019671,2]
[364969072,1749364253306,-264.44304571,0.00019671,2]
[364969073,1749364253315,-480.0,0.00019671,2]
[364969074,1749364253326,-1093.87,0.00019671,2]
[364969075,1749364253336,-1598.06,0.00019671,2]
[364969076,1749364253345,-480.0,0.00019671,2]
[364969077,1749364253356,-346.40993413,0.00019671,2]
[364969078,1749364253365,-480.0,0.00019671,2]
[364969079,1749364253374,-2139.7,0.00019671,2]
[364969080,1749364253384,-480.0,0.00019671,2]
[364969081,1749364253394,-480.0,0.00019671,2]
[364969082,1749364253404,-480.0,0.00019671,2]
[364969083,1749364253413,-480.0,0.00019671,2]
[364969084,1749364253423,-480.0,0.00019671,2]
[364969085,1749364253434,-890.34,0.00019671,2]
[364969086,1749364253443,-480.0,0.00019671,2]
[364969087,1749364253453,-1984.18,0.00019671,2]
[364969088,1749364253463,-480.0,0.00019671,2]
[364969089,1749364253473,-480.0,0.00019671,2]
[364969090,1749364253483,-480.0,0.00019671,2]
[364969091,1749364253492,-1094.88,0.00019671,2]
[364969092,1749364253501,-530.22,0.00019671,2]
[364969093,1749364253511,-480.0,0.00019671,2]
[364969094,1749364253520,-480.0,0.00019671,2]
[364969095,1749364253529,-480.0,0.00019671,2]
[364969096,1749364253538,-480.0,0.00019671,2]
[364969097,1749364253548,-4179.8,0.00019671,2]
[364969098,1749364253557,-1034.7,0.00019671,2]
[364969099,1749364253566,-480.0,0.00019671,2]
[364969100,1749364253575,-480.0,0.00019671,2]
[364969101,1749364253585,-480.0,0.00019671,2]
[364969102,1749364253594,-480.0,0.00019671,2]
[364969103,1749364253603,-480.0,0.00019671,2]
[364969104,1749364253612,-480.0,0.00019671,2]
[364969105,1749364253622,-1937.29,0.00019671,2]
[364969106,1749364253632,-480.0,0.00019671,2]
[364969107,1749364253641,-971.4,0.00019671,2]
[364969108,1749364253651,-1278.48,0.00019671,2]
[364969109,1749364253660,-480.0,0.00019671,2]
[364969110,1749364253669,-3384.73,0.00019671,2]
[364969111,1749364253678,-480.0,0.00019671,2]
[364969112,1749364253687,-840.75,0.00019671,2]
[364969113,1749364253696,-1844.25,0.00019671,2]
[364969114,1749364253704,-480.0,0.00019671,2]
[364969115,1749364253713,-480.0,0.00019671,2]
[364969116,1749364253722,-480.0,0.00019671,2]
[364969117,1749364253731,-788.24,0.00019671,2]
[364969118,1749364253740,-480.0,0.00019671,2]
[364969119,1749364253749,-480.0,0.00019671,2]
[364969120,1749364253759,-480.0,0.00019671,2]
[364969121,1749364253768,-480.0,0.00019671,2]
[364969122,1749364253777,-480.0,0.00019671,2]
[364969123,1749364253785,-2296.57,0.00019671,2]
[364969124,1749364253795,-480.0,0.00019671,2]
[364969125,1749364253804,-527.16,0.00019671,2]
[364969126,1749364253813,-480.0,0.00019671,2]
[364969127,1749364253822,-1437.16,0.00019671,2]
[364969128,1749364253831,-480.0,0.00019671,2]
[364969129,1749364253841,-480.0,0.00019671,2]
[364969130,1749364253850,-480.0,0.00019671,2]
[364969131,1749364253859,-480.0,0.00019671,2]
[364969132,1749364253868,-480.0,0.00019671,2]
[364969133,1749364253877,-820.55,0.00019671,2]
[364969134,1749364253886,-1274.91,0.00019671,2]
[364969135,1749364253895,-480.0,0.00019671,2]
[364969136,1749364253905,-350.08038864,0.00019671,2]
[364969137,1749364253914,-290.90063357,0.00019671,2]
[364969138,1749364253925,-242.09212513,0.00019671,2]
[364969139,1749364253935,-480.0,0.00019671,2]
[364969140,1749364253945,-480.0,0.00019671,2]
[364969141,1749364253956,-643.03,0.00019671,2]
[364969142,1749364253967,-480.0,0.00019671,2]
[364969143,1749364253976,-480.0,0.00019671,2]
[364969144,1749364253988,-480.0,0.00019671,2]
[364969145,1749364253998,-480.0,0.00019671,2]
[364969146,1749364254007,-66789.99,0.00019671,2]
[364969147,1749364254017,-3935.55,0.00019671,2]
[364969148,1749364254031,-480.0,0.00019671,2]
[364969149,1749364254040,-480.0,0.00019671,2]
[364969150,1749364254050,-861.71,0.00019671,2]
[364969151,1749364254060,-480.0,0.00019671,2]
[364969152,1749364254071,-480.0,0.00019671,2]
[364969153,1749364254080,-684.62,0.00019671,2]
[364969154,1749364254089,-480.0,0.00019671,2]
[364969155,1749364254101,-304.60212863,0.00019671,2]
[364969156,1749364254112,-480.0,0.00019671,2]
[364969157,1749364254121,-480.0,0.00019671,2]
[364969158,1749364254132,-909.52,0.00019671,2]
[364969159,1749364254141,-2317.81,0.00019671,2]
[364969160,1749364254150,-480.0,0.00019671,2]
[364969161,1749364254159,-480.0,0.00019671,2]
[364969162,1749364254169,-340.25127169,0.00019671,2]
[364969163,1749364254178,-480.0,0.00019671,2]
[364969164,1749364254189,-480.0,0.00019671,2]
[364969165,1749364254198,-480.0,0.00019671,2]
[364969166,1749364254208,-480.0,0.00019671,2]
[364969167,1749364254218,-480.0,0.00019671,2]
[364969168,1749364254228,-480.0,0.00019671,2]
[364969169,1749364254238,-667.24,0.00019671,2]
[364969170,1749364254249,-547.29,0.00019671,2]
[364969171,1749364254258,-480.0,0.00019671,2]
[364969172,1749364254270,-480.0,0.00019671,2]
[364969173,1749364254430,-480.0,0.00019671,2]
[364969174,1749364254440,-480.0,0.00019671,2]
[364969175,1749364254450,-480.0,0.00019671,2]
[364969176,1749364254460,-480.0,0.00019671,2]
[364969177,1749364254470,-631.52,0.00019671,2]
[364969178,1749364254479,-726.85,0.00019671,2]
[364969179,1749364254490,-480.0,0.00019671,2]
[364969180,1749364254500,-5004.03,0.00019671,2]
[364969181,1749364254509,-480.0,0.00019671,2]
[364969182,1749364254519,-480.0,0.00019671,2]
[364969183,1749364254531,-480.0,0.00019671,2]
[364969184,1749364254540,-480.0,0.00019671,2]
[364969185,1749364254550,-512.77,0.00019671,2]
[364969186,1749364254559,-500.0,0.00019673,2]
[364969187,1749364254569,-505.02460446,0.00019673,2]
[364969188,1749364254578,-500.0,0.00019673,2]
[364969189,1749364254587,-275.96361626,0.00019673,2]
[364969190,1749364254596,-500.0,0.00019673,2]
[364969191,1749364254605,-503.14251511,0.00019673,2]
[364969192,1749364254614,-500.0,0.00019673,2]
[364969193,1749364254623,-500.0,0.00019673,2]
[364969194,1749364254632,-500.0,0.00019673,2]
[364969195,1749364254641,-533.07438455,0.00019673,2]
[364969196,1749364254650,-500.0,0.00019673,2]
[364969197,1749364254659,-170.96194015,0.00019681,2]
[364969198,1749364254669,-2212.62992227,0.00019684,2]
[364969199,1749364254679,-21757.0,0.000197,2]
[364969200,1749364254689,-150.24,0.00019704,2]
[364969201,1749364254698,-300.0,0.00019704,2]
[364969202,1749364254707,-300.4,0.00019704,2]
[364969203,1749364254716,-150.0,0.00019704,2]
[364969204,1749364254724,-4931.9619892,0.00019717,2]
[364969205,1749364254733,-156.587,0.00019726,2]
[364969206,1749364254743,-2212.62992227,0.00019727,2]
[364969207,1749364254752,-531.93487381,0.00019732,2]
[364969208,1749364254761,-2212.62992227,0.0001977,2]
[364969209,1749364254770,-5800.0,0.0001979,2]
[364969210,1749364254779,-202.0,0.0001979,2]
[364969211,1749364254788,-170.96194015,0.0001979,2]
[364969212,1749364254797,-5800.0,0.00019798,2]
[364969213,1749364254806,-1002.5404548,0.000198,2]
[364969214,1749364254816,-5800.0,0.00019807,2]
[364969215,1749364254825,-4931.9619892,0.00019809,2]
[364969216,1749364254834,-1278.29,0.00019811,2]
[364969217,1749364254843,-12500.0,0.00019812,2]
[364969218,1749364254853,-2212.62992227,0.00019813,2]
[364969219,1749364254862,-5800.0,0.00019815,2]
[364969220,1749364254872,-531.93487381,0.00019816,2]
[364969221,1749364254881,-12500.0,0.00019821,2]
[364969222,1749364254891,-5800.0,0.00019824,2]
[364969223,1749364254901,-12500.0,0.0001983,2]
[364969224,1749364254911,-5800.0,0.00019832,2]
[364969225,1749364254920,-321.52,0.00019834,2]
[364969226,1749364254929,-500.0,0.00019834,2]
[364969227,1749364254939,-480.0,0.00019835,2]
[364969228,1749364254948,-480.0,0.00019835,2]
[364969229,1749364254957,-480.0,0.00019835,2]
[364969230,1749364254967,-480.0,0.00019835,2]
[364969231,1749364254977,-480.0,0.00019835,2]
[364969232,1749364254986,-459.65562684,0.00019835,2]
[364969233,1749364254997,-193.33138024,0.00019835,2]
[364969239,1749364482387,150.0,0.0001705,2]
[364969240,1749364680676,-195.56509629,0.00017064,2]
[364969241,1749364683339,-205.0,0.00017064,2]
[364969242,1749364687556,-99.43490371,0.00017064,2]
[364969244,1749364698942,260.75,0.00013699,2]
[364969245,1749364819979,473.03,0.00016365,2]
[364969262,1749365431481,-300.0,0.00017999,2]
[364969263,1749365431490,-628.663573,0.00017999,2]
[364969264,1749365431502,-571.336427,0.00017999,2]
[364969265,1749365431514,-301.97322999,0.00018,2]
[364969266,1749365431667,-5218.65797479,0.00018,2]
[364969267,1749365431726,-2737.28378383,0.00018,2]
[364969295,1749365437734,-347.1339226,0.00018,2]
[364969301,1749365439612,-676.35065033,0.00018,2]
[364969302,1749365439624,-913.76378646,0.00018,2]
[364969303,1749365439911,-764.745945,0.00018,2]
[364969304,1749365440020,-7230.14636129,0.00018,2]
[364969308,1749365442612,-309.94434571,0.00018,2]
[364969309,1749365442624,-224.89,0.00018,2]
[364969310,1749365442635,-2205.76,0.00018202,2]
[364969312,1749365442847,-1000.0,0.00018212,2]
[364969313,1749365442857,-200.0,0.00018219,2]
[364969314,1749365442867,-150.0,0.00018293,7]
[364969315,1749365442876,-531.8,0.00018519,2]
[364969316,1749365442886,-204.0,0.00018612,2]
[364969317,1749365442895,-473.03,0.00018629,2]
[364969318,1749365442906,-170.3,0.00018878,2]
[364969319,1749365442916,-150.0,0.00018878,2]
[364969320,1749365442928,-150.0,0.000189,2]
[364969321,1749365442937,-173.07,0.000189,2]
[364969322,1749365442947,-170.61,0.000189,2]
[364969323,1749365442958,-150.0,0.000189,2]
[364969324,1749365442967,-354.34,0.000189,2]
[364969325,1749365442978,-354.34,0.000189,2]
[364969326,1749365442987,-150.0,0.000189,2]
[364969327,1749365442998,-170.61,0.000189,2]
[364969328,1749365443008,-354.34,0.000189,2]
[364969329,1749365443017,-250.0,0.00019,2]
[364969330,1749365443026,-527.60700036,0.00019078,2]
[364969331,1749365443036,-221.26299236,0.00019078,2]
[364969332,1749365443046,-221.26299222,0.00019121,2]
[364969333,1749365443055,-168.0,0.00019148,2]
[364969334,1749365443064,-168.0,0.00019149,2]
[364969335,1749365443073,-168.0,0.00019157,2]
[364969336,1749365443083,-221.26299222,0.00019165,2]
[364969337,1749365443092,-151.0,0.00019166,2]
[364969338,1749365443103,-207.4,0.00019166,2]
[364969339,1749365443113,-527.60700033,0.00019169,2]
[364969340,1749365443123,-133.930747,0.00019177,2]
[364969341,1749365443135,-188.04499471,0.00019177,2]
[364969342,1749365443145,-480.0,0.00019178,2]
[364969343,1749365443154,-480.0,0.00019178,2]
[364969344,1749365443163,-528.55,0.00019178,2]
[364969345,1749365443174,-545.42,0.00019178,2]
[364969346,1749365443184,-625.67092045,0.00019178,2]
[364969347,1749365443194,-480.0,0.00019178,2]
[364969348,1749365443205,-480.0,0.00019178,2]
[364969349,1749365443215,-480.0,0.00019178,2]
[364969350,1749365443225,-480.0,0.00019178,2]
[364969351,1749365443235,-877.45,0.00019178,2]
[364969352,1749365443245,-480.0,0.00019178,2]
[364969353,1749365443255,-480.0,0.00019178,2]
[364969354,1749365443265,-480.0,0.00019178,2]
[364969355,1749365443274,-480.0,0.00019178,2]
[364969356,1749365443284,-480.0,0.00019178,2]
[364969357,1749365443294,-480.0,0.00019178,2]
[364969358,1749365443304,-480.0,0.00019178,2]
[364969359,1749365443314,-480.0,0.00019178,2]
[364969360,1749365443324,-480.0,0.00019178,2]
[364969361,1749365443334,-480.0,0.00019178,2]
[364969362,1749365443343,-480.0,0.00019178,2]
[364969363,1749365443354,-480.0,0.00019178,2]
[364969364,1749365443363,-597.1044427,0.00019178,2]
[364969365,1749365443372,-480.0,0.00019178,2]
[364969366,1749365443382,-480.0,0.00019178,2]
[364969367,1749365443391,-656.60003299,0.00019178,2]
[364969368,1749365443403,-343.39996701,0.00019178,2]
[364969369,1749365443412,-480.0,0.00019178,2]
[364969370,1749365443422,-480.0,0.00019178,2]
[364969371,1749365443431,-464.05326605,0.00019178,2]
[364969373,1749365445463,-15.94673395,0.00019178,2]
[364969375,1749365445473,-480.0,0.00019178,2]
[364969376,1749365445482,-480.0,0.00019178,2]
[364969377,1749365445492,-480.0,0.00019178,2]
[364969378,1749365445501,-426.97552562,0.00019178,2]
[364969379,1749365445513,-53.02447438,0.00019178,2]
[364969380,1749365445523,-480.0,0.00019178,2]
[364969381,1749365445532,-480.0,0.00019178,2]
[364969382,1749365445542,-480.0,0.00019178,2]
[364969383,1749365445551,-603.54,0.00019178,2]
[364969384,1749365445560,-405.54700603,0.00019178,2]
[364969385,1749365445569,-169.35199148,0.00019178,2]
[364969386,1749365445581,-322.14800852,0.00019178,2]
[364969387,1749365445590,-521.65199158,0.00019178,2]
[364969388,1749365445603,-84.05800842,0.00019178,2]
[364969389,1749365445612,-480.0,0.00019178,2]
[364969390,1749365445622,-191.32009269,0.00019178,2]
[364969391,1749365445643,-295.96854293,0.00019178,2]
[364969392,1749365445654,-480.0,0.00019178,2]
[364969393,1749365445664,-480.0,0.00019178,2]
[364969394,1749365445674,-480.0,0.00019178,2]
[364969395,1749365445684,-480.0,0.00019178,2]
[364969396,1749365445694,-480.0,0.00019178,2]
[364969397,1749365445704,-480.0,0.00019178,2]
[364969398,1749365445713,-480.0,0.00019178,2]
[364969399,1749365445723,-480.0,0.00019178,2]
[364969400,1749365445732,-480.0,0.00019178,2]
[364969401,1749365445742,-480.0,0.00019178,2]
[364969402,1749365445751,-480.0,0.00019178,2]
[364969403,1749365445762,-480.0,0.00019178,2]
[364969404,1749365445771,-1331.72,0.00019178,2]
[364969405,1749365445780,-911.56,0.00019178,2]
[364969406,1749365445790,-480.0,0.00019178,2]
[364969407,1749365445799,-480.0,0.00019178,2]
[364969408,1749365445808,-480.0,0.00019178,2]
[364969409,1749365445818,-1783.08,0.00019178,2]
[364969410,1749365445827,-245.74,0.00019178,2]
[364969411,1749365445836,-741.95,0.00019178,2]
[364969412,1749365445845,-480.0,0.00019178,2]
[364969413,1749365445854,-1653.48,0.00019178,2]
[364969414,1749365445863,-480.0,0.00019178,2]
[364969415,1749365445873,-912.4,0.00019178,2]
[364969416,1749365445882,-300.16218594,0.00019178,2]
[364969417,1749365445891,-480.0,0.00019178,2]
[364969418,1749365445902,-480.0,0.00019178,2]
[364969419,1749365445911,-480.0,0.00019178,2]
[364969420,1749365445922,-480.0,0.00019178,2]
[364969421,1749365445932,-480.0,0.00019178,2]
[364969422,1749365445941,-480.0,0.00019178,2]
[364969424,1749365445950,-480.0,0.00019178,2]
[364969425,1749365445959,-480.0,0.00019178,2]
[364969427,1749365445969,-480.0,0.00019178,2]
[364969429,1749365445978,-480.0,0.00019178,2]
[364969431,1749365445987,-480.0,0.00019178,2]
[364969433,1749365446203,-480.0,0.00019178,2]
[364969434,1749365446213,-809.5,0.00019178,2]
[364969435,1749365446222,-3551.7,0.00019178,2]
[364969436,1749365446232,-386.97578475,0.00019178,2]
[364969437,1749365446241,-1536.88,0.00019178,2]
[364969438,1749365446251,-480.0,0.00019178,2]
[364969439,1749365446260,-480.0,0.00019178,2]
[364969440,1749365446270,-480.0,0.00019178,2]
[364969441,1749365446279,-480.0,0.00019178,2]
[364969442,1749365446289,-480.0,0.00019178,2]
[364969443,1749365446299,-480.0,0.00019178,2]
[364969444,1749365446308,-480.0,0.00019178,2]
[364969445,1749365446318,-480.0,0.00019178,2]
[364969446,1749365446328,-1913.81,0.00019178,2]
[364969447,1749365446338,-480.0,0.00019178,2]
[364969448,1749365446348,-700.63,0.00019178,2]
[364969449,1749365446357,-2820.61,0.00019178,2]
[364969450,1749365446367,-480.0,0.00019178,2]
[364969451,1749365446376,-862.25,0.00019178,2]
[364969452,1749365446386,-466.99788598,0.00019178,2]
[364969453,1749365446396,-2634.79,0.00019178,2]
[364969454,1749365446406,-340.35,0.00019178,2]
[364969455,1749365446415,-480.0,0.00019178,2]
[364969456,1749365446425,-480.0,0.00019178,2]
[364969457,1749365446434,-480.0,0.00019178,2]
[364969458,1749365446443,-480.0,0.00019178,2]
[364969459,1749365446453,-1062.43,0.00019178,2]
[364969460,1749365446463,-3483.17,0.00019178,2]
[364969461,1749365446472,-480.0,0.00019178,2]
[364969462,1749365446482,-480.0,0.00019178,2]
[364969463,1749365446491,-480.0,0.00019178,2]
[364969464,1749365446501,-480.0,0.00019178,2]
[364969465,1749365446510,-480.0,0.00019178,2]
[364969466,1749365446520,-269.33031507,0.00019178,2]
[364969467,1749365446529,-546.75831375,0.00019178,2]
[364969468,1749365446539,-290.34,0.00019178,2]
[364969469,1749365446549,-683.79,0.00019178,2]
[364969470,1749365446561,-574.75,0.00019178,2]
[364969471,1749365446571,-480.11,0.00019178,2]
[364969472,1749365446580,-480.0,0.00019178,2]
[364969473,1749365446589,-259.45685654,0.00019178,2]
[364969474,1749365446601,-1065.4,0.00019178,2]
[364969475,1749365446610,-480.0,0.00019178,2]
[364969476,1749365446620,-480.0,0.00019178,2]
[364969477,1749365446631,-3279.62,0.00019178,2]
[364969478,1749365446641,-480.0,0.00019178,2]
[364969479,1749365446651,-757.93,0.00019178,2]
[364969480,1749365446660,-480.0,0.00019178,2]
[364969481,1749365446669,-480.0,0.00019178,2]
[364969482,1749365446679,-1099.33,0.00019178,2]
[364969483,1749365446688,-480.0,0.00019178,2]
[364969484,1749365446697,-480.0,0.00019178,2]
[364969485,1749365446706,-557.06358838,0.00019178,2]
[364969486,1749365446716,-718.09,0.00019178,2]
[364969487,1749365446725,-596.91236922,0.00019178,2]
[364969488,1749365446734,-480.0,0.00019178,2]
[364969489,1749365446743,-15462.24363709,0.00019178,2]
[364969490,1749365446756,-2292.4,0.00019178,2]
[364969491,1749365446766,-4744.79967454,0.00019178,2]
[364969492,1749365446777,-28160.61919247,0.00019178,2]
[364969493,1749365446788,-619.76020313,0.00019178,2]
[364969494,1749365446798,-879.96,0.00019178,2]
[364969495,1749365446809,-688.08525818,0.00019178,2]
[364969496,1749365446820,-1873.14887,0.00019178,2]
[364969497,1749365446830,-937.31316459,0.00019178,2]
[364969498,1749365446839,-535.86,0.00019178,2]
[364969499,1749365446848,-480.0,0.00019178,2]
[364969500,1749365446857,-534.62544662,0.00019178,2]
[364969501,1749365446867,-1116.14335463,0.00019178,2]
[364969502,1749365699327,255.73,0.00013699,2]
[364969505,1749365918693,1074.46,0.0001705,2]
[364969628,1749366326857,449.4,0.00016318,2]
[364969638,1749366351477,3405.0,0.000141,5]
[364969725,1749366627923,-296.34420104,0.0001705,2]
[364969726,1749366630278,-151.0,0.0001705,2]
[364969729,1749366631626,-266.30230896,0.0001705,2]
[364969730,1749366631636,-713.64651,0.0001705,2]
[364969731,1749366631646,-713.64651,0.0001705,2]
[364969732,1749366631656,-697.75274268,0.0001811,2]
[364969733,1749366631666,-1000.0,0.00018229,2]
[364969734,1749366631676,-150.0,0.00018316,7]
[364969735,1749366631686,-169.31432995,0.00018316,2]
[364969736,1749366631696,-200.0,0.00018337,2]
[364969737,1749366631705,-449.4,0.00018582,2]
[364969738,1749366631715,-428.56185769,0.00018883,7]
[364969739,1749366631727,-189.43814231,0.00018883,7]
[364969740,1749366631736,-170.61,0.000189,2]
[364969741,1749366631746,-159.8202491,0.000189,2]
[364969742,1749366631762,-10.7897509,0.000189,2]
[364969743,1749366631771,-829.20600398,0.00018956,2]
[364969744,1749366631956,-278.1726934,0.00018956,2]
[364969745,1749366631968,-301.81,0.00018956,2]
[364969746,1749366631980,-570.00072553,0.00018956,2]
[364969767,1749366637811,-2498.82578688,0.00018956,2]
[364969852,1749366639960,-2538.98479021,0.00018956,2]
[364969854,1749366639970,-913.303,0.00018956,2]
[364969856,1749366639979,-4078.0,0.00018956,2]
[364969857,1749366639989,-155.0,0.00018956,2]
[364969859,1749366639999,-883.0,0.00018956,2]
[364969861,1749366640009,-796.51,0.00018964,2]
[364969863,1749366640018,-170.61,0.000191,2]
[364969865,1749366640027,-152.0,0.00019115,3]
[364969867,1749366640037,-934.21959744,0.00019132,2]
[364969869,1749366640045,-169.31432995,0.00019141,2]
[364969870,1749366640054,-608.56341009,0.00019141,2]
[364969872,1749366640064,-350.0,0.00019159,2]
[364969874,1749366640073,-300.0,0.00019165,2]
[364969876,1749366640083,-300.0,0.00019165,2]
[364969878,1749366640092,-300.0,0.00019165,2]
[364969880,1749366640101,-1200.0,0.00019165,2]
[364969882,1749366640113,-151.0,0.00019166,2]
[364969884,1749366640122,-151.0,0.00019166,2]
[364969886,1749366640131,-151.0,0.00019166,2]
[364969887,1749366640141,-151.0,0.00019166,2]
[364969890,1749366640152,-151.0,0.00019166,2]
[364969892,1749366640161,-151.0,0.00019166,2]
[364969893,1749366640171,-267.86108575,0.00019166,2]
[364969895,1749366640180,-207.4,0.00019166,2]
[364969897,1749366640189,-169.31432995,0.00019177,2]
[364969899,1749366640198,-480.0,0.00019178,2]
[364969901,1749366640207,-480.0,0.00019178,2]
[364969903,1749366640216,-480.0,0.00019178,2]
[364969905,1749366640225,-480.0,0.00019178,2]
[364969906,1749366640234,-480.0,0.00019178,2]
[364969908,1749366640243,-397.450152,0.00019178,2]
[364969910,1749366640253,-480.0,0.00019178,2]
[364969912,1749366640265,-480.0,0.00019178,2]
[364969914,1749366640275,-480.0,0.00019178,2]
[364969916,1749366640284,-480.0,0.00019178,2]
[364969918,1749366640293,-118.66263286,0.00019178,2]
[364969937,1749366646026,-225.3830192,0.00019177,2]
[364969938,1749366646037,-361.33736714,0.00019178,2]
[364969939,1749366646048,-148.98872252,0.00019178,2]
[364969946,1749366752194,242.94,0.00013699,2]
[364969947,1749366769636,1000.0,0.00017,2]
[364969948,1749366803410,-204.0,0.00018375,2]
[364969949,1749366803438,-250.0,0.0001838,2]
[364969950,1749366803466,-46.0,0.00019078,2]
[364969951,1749366859623,-206.0,0.00018375,2]
[364969952,1749366859651,-376.0856003,0.00019078,2]
[364969953,1749366859679,-188.07354352,0.00019078,2]
[364969954,1749366859704,-150.0,0.00019082,20]
[364969955,1749366859732,-200.0,0.000191,6]
[364969956,1749366888368,150.0,0.00018336,7]
[364969957,1749366902148,1729.84085618,0.00019,2]
[364969960,1749367351976,447.08,0.00016375,2]
[364969962,1749367474132,150.0,0.00016985,20]
[364969963,1749367490369,749.38,0.00018045,120]
[364969966,1749367615885,1572.59916143,0.00015,14]
[364969973,1749367670146,11205.90707763,0.00013,15]
[364969974,1749367675028,1122.48146478,0.00015,10]
[364969975,1749367715436,18921.69125109,0.000151,2]
[364969976,1749367715523,2209.15277661,0.0001421,7]
[364970009,1749367832125,-200.0,0.000179,6]
[364970010,1749367832135,-474.53182277,0.00017919,2]
[364970011,1749367832146,-178.66986623,0.00017919,2]
[364970012,1749367832155,-177.31162461,0.00017962,2]
[364970013,1749367832164,-378.84318737,0.00017973,2]
[364970014,1749367832174,-300.0,0.00017999,2]
[364970015,1749367832183,-300.0,0.00017999,2]
[364970016,1749367832192,-1200.0,0.00017999,2]
[364970017,1749367832202,-157.76811344,0.00017999,2]
[364970018,1749367832211,-151929.89401099,0.00018,2]
[364970019,1749367832230,-533.64022597,0.00018,2]